fUST/lending_fUST_20240226
["ID","MTS","AMOUNT","RATE_DAILY","PERIOD"]
[315184389,1708911047247,-1233.52,0.00019452,2]
[315184390,1708911047256,-640.14797302,0.00019452,2]
[315184391,1708911047266,-501.16512852,0.00019452,2]
[315184392,1708911047275,-500.0,0.00019452,2]
[315184393,1708911047284,-1466.23,0.00019452,2]
[315184394,1708911047293,-500.0,0.00019452,2]
[315184395,1708911047303,-22577.9,0.00019452,2]
[315184396,1708911047312,-3095.07,0.00019452,2]
[315184397,1708911047321,-500.0,0.00019452,2]
[315184398,1708911047330,-500.0,0.00019452,2]
[315184399,1708911047339,-500.0,0.00019452,2]
[315184400,1708911047349,-500.0,0.00019452,2]
[315184401,1708911047358,-500.0,0.00019452,2]
[315184402,1708911047367,-1437.55,0.00019452,2]
[315184403,1708911047377,-500.0,0.00019452,2]
[315184404,1708911047387,-1841.77,0.00019452,2]
[315184405,1708911047396,-500.0,0.00019452,2]
[315184406,1708911047405,-500.0,0.00019452,2]
[315184407,1708911047415,-500.0,0.00019452,2]
[315184408,1708911047424,-500.0,0.00019452,2]
[315184409,1708911047433,-500.9022587,0.00019452,2]
[315184410,1708911047443,-500.0,0.00019452,2]
[315184411,1708911047452,-500.0,0.00019452,2]
[315184412,1708911047461,-7321.61669943,0.00019461,2]
[315184413,1708911047470,-7321.61669943,0.00019478,2]
[315184414,1708911047479,-182.51135653,0.0001948,2]
[315184415,1708911047488,-182.51135653,0.00019481,2]
[315184416,1708911047497,-182.51135653,0.00019484,2]
[315184417,1708911047506,-7321.61669943,0.00019499,2]
[315184418,1708911047516,-153.0,0.000195,2]
[315184419,1708911047525,-153.0,0.000195,2]
[315184420,1708911047533,-153.0,0.000195,2]
[315184421,1708911047542,-153.0,0.000195,2]
[315184422,1708911047552,-153.0,0.000195,2]
[315184423,1708911047564,-200.5569553,0.000195,2]
[315184424,1708911047574,-153.0,0.000195,2]
[315184425,1708911047583,-153.0,0.000195,2]
[315184426,1708911047593,-301.9614026,0.000195,2]
[315184427,1708911047603,-306.0,0.000195,2]
[315184428,1708911047612,-431.2948905,0.000195,2]
[315184429,1708911047621,-153.0,0.000195,2]
[315184430,1708911047630,-401.1139106,0.000195,2]
[315184431,1708911047641,-153.0,0.000195,2]
[315184432,1708911047650,-200.5569553,0.000195,2]
[315184433,1708911047660,-153.0,0.000195,2]
[315184434,1708911047669,-153.0,0.000195,2]
[315184435,1708911047678,-153.0,0.000195,2]
[315184436,1708911047688,-153.0,0.000195,2]
[315184437,1708911047697,-153.0,0.000195,2]
[315184438,1708911047707,-153.0,0.000195,2]
[315184439,1708911047716,-153.0,0.000195,2]
[315184440,1708911047725,-200.5569553,0.000195,2]
[315184441,1708911047734,-153.0,0.000195,2]
[315184442,1708911047743,-306.0,0.000195,2]
[315184443,1708911047753,-200.5569553,0.000195,2]
[315184444,1708911047763,-153.0,0.000195,2]
[315184445,1708911047772,-153.0,0.000195,2]
[315184446,1708911047781,-153.0,0.000195,2]
[315184447,1708911047791,-306.0,0.000195,2]
[315184448,1708911047800,-200.5569553,0.000195,2]
[315184449,1708911047810,-555.85419396,0.00019599,2]
[315184450,1708911047820,-500.0,0.00019599,2]
[315184451,1708911047830,-500.0,0.00019599,2]
[315184452,1708911047839,-75808.99780811,0.000196,2]
[315184453,1708911047852,-153.0,0.000196,2]
[315184454,1708911047863,-306.0,0.000196,2]
[315184455,1708911047873,-153.0,0.000196,2]
[315184456,1708911047882,-200.5569553,0.000196,2]
[315184457,1708911047891,-153.0,0.000196,2]
[315184458,1708911047901,-153.0,0.000196,2]
[315184459,1708911047910,-153.0,0.000196,2]
[315184460,1708911047920,-379.9535109,0.000196,2]
[315184461,1708911047929,-306.0,0.000196,2]
[315184462,1708911047938,-306.0,0.000196,2]
[315184463,1708911047948,-200.5569553,0.000196,2]
[315184464,1708911047957,-153.0,0.000196,2]
[315184465,1708911047966,-153.0,0.000196,2]
[315184466,1708911047976,-401.1139106,0.000196,2]
[315184467,1708911047985,-153.0,0.000196,2]
[315184468,1708911047995,-200.5569553,0.000196,2]
[315184469,1708911048004,-401.1139106,0.000196,2]
[315184470,1708911048013,-153.0,0.000196,2]
[315184471,1708911048032,-153.0,0.000196,2]
[315184472,1708911048059,-153.0,0.000196,2]
[315184473,1708911048080,-200.5569553,0.000196,2]
[315184474,1708911048091,-154.2401143,0.000196,2]
[315184475,1708911048103,-166.666666,0.00019627,2]
[315184476,1708911048113,-403.2047574,0.00019671,2]
[315184477,1708911048122,-5523.32487849,0.000197,2]
[315184478,1708911048132,-5523.32487849,0.000197,2]
[315184479,1708911048141,-5523.32487849,0.000197,2]
[315184480,1708911048150,-1002.29934527,0.000197,2]
[315184481,1708911048160,-213.02714965,0.00019721,2]
[315184482,1708911048169,-677.415638,0.00019722,2]
[315184483,1708911048178,-625.44826244,0.00019723,2]
[315184484,1708911048188,-500.0,0.00019723,2]
[315184485,1708911048197,-1412.29479491,0.00019724,2]
[315184486,1708911048206,-500.0,0.00019724,2]
[315184487,1708911048215,-500.0,0.00019725,2]
[315184488,1708911048224,-198.58317025,0.00019725,2]
[315184489,1708911048234,-500.0,0.00019725,2]
[315184490,1708911048243,-375.81785305,0.00019725,2]
[315184491,1708911048350,-500.0,0.00019725,2]
[315184492,1708911048361,-525.97405592,0.00019725,2]
[315184493,1708911048370,-500.0,0.00019725,2]
[315184494,1708911048380,-500.0,0.00019725,2]
[315184495,1708911048389,-500.0,0.00019725,2]
[315184496,1708911048399,-500.0,0.00019725,2]
[315184497,1708911048408,-243.58118859,0.00019725,2]
[315184498,1708911048417,-500.0,0.00019725,2]
[315184499,1708911048426,-500.0,0.00019725,2]
[315184500,1708911048436,-500.0,0.00019725,2]
[315184501,1708911048446,-500.0,0.00019726,2]
[315184502,1708911048456,-689.27,0.00019726,2]
[315184503,1708911048466,-500.0,0.00019726,2]
[315184504,1708911048475,-500.0,0.00019726,2]
[315184505,1708911048485,-500.0,0.00019726,2]
[315184506,1708911048495,-213.15646545,0.00019726,2]
[315184507,1708911048505,-604.17,0.00019726,2]
[315184508,1708911048514,-500.0,0.00019726,2]
[315184509,1708911048523,-500.0,0.00019726,2]
[315184510,1708911048532,-230.60982417,0.00019726,2]
[315184511,1708911048541,-635.35,0.00019726,2]
[315184512,1708911048550,-500.0,0.00019726,2]
[315184513,1708911048561,-555.17227293,0.00019726,2]
[315184514,1708911048570,-443.11011788,0.00019726,2]
[315184515,1708911048579,-603.47952692,0.00019726,2]
[315184516,1708911048588,-375.96413218,0.00019726,2]
[315184517,1708911048601,-500.0,0.00019726,2]
[315184518,1708911048610,-151.0,0.00019726,2]
[315184519,1708911048619,-530.73,0.00019726,2]
[315184520,1708911048628,-500.0,0.00019726,2]
[315184521,1708911048637,-500.0,0.00019726,2]
[315184522,1708911048647,-567.91,0.00019726,2]
[315184523,1708911048655,-1442.09,0.00019726,2]
[315184524,1708911048665,-754.67,0.00019726,2]
[315184525,1708911048674,-500.0,0.00019726,2]
[315184526,1708911048684,-500.0,0.00019726,2]
[315184527,1708911048693,-500.0,0.00019726,2]
[315184528,1708911048703,-500.0,0.00019726,2]
[315184529,1708911048712,-500.0,0.00019726,2]
[315184530,1708911048722,-500.0,0.00019726,2]
[315184531,1708911048732,-500.0,0.00019726,2]
[315184532,1708911048741,-1004.11866743,0.00019726,2]
[315184533,1708911048750,-500.0,0.00019726,2]
[315184534,1708911048759,-500.0,0.00019726,2]
[315184535,1708911048768,-500.0,0.00019726,2]
[315184536,1708911048778,-500.0,0.00019726,2]
[315184537,1708911048787,-500.0,0.00019726,2]
[315184538,1708911048797,-500.0,0.00019726,2]
[315184539,1708911048806,-500.0,0.00019726,2]
[315184540,1708911048816,-2267.07,0.00019726,2]
[315184541,1708911048825,-500.0,0.00019726,2]
[315184542,1708911048834,-500.0,0.00019726,2]
[315184543,1708911048845,-500.0,0.00019726,2]
[315184544,1708911048857,-500.0,0.00019726,2]
[315184545,1708911048866,-614.95785219,0.00019726,2]
[315184546,1708911048875,-500.0,0.00019726,2]
[315184547,1708911048884,-500.0,0.00019726,2]
[315184548,1708911048894,-500.0,0.00019726,2]
[315184549,1708911048903,-500.0,0.00019726,2]
[315184550,1708911048913,-1774.95,0.00019726,2]
[315184551,1708911048922,-500.0,0.00019726,2]
[315184552,1708911048931,-500.0,0.00019726,2]
[315184553,1708911048940,-500.0,0.00019726,2]
[315184554,1708911048950,-500.0,0.00019726,2]
[315184555,1708911048959,-500.0,0.00019726,2]
[315184556,1708911048969,-500.0,0.00019726,2]
[315184557,1708911048978,-500.0,0.00019726,2]
[315184558,1708911048988,-500.0,0.00019726,2]
[315184559,1708911048997,-500.0,0.00019726,2]
[315184560,1708911049007,-500.0,0.00019726,2]
[315184561,1708911049016,-500.0,0.00019726,2]
[315184562,1708911049025,-476.97605386,0.00019726,2]
[315184563,1708911049034,-500.0,0.00019726,2]
[315184564,1708911049043,-500.0,0.00019726,2]
[315184565,1708911049053,-500.0,0.00019726,2]
[315184566,1708911049062,-500.0,0.00019726,2]
[315184567,1708911049071,-500.0,0.00019726,2]
[315184568,1708911049081,-998.25,0.00019726,2]
[315184569,1708911049090,-500.0,0.00019726,2]
[315184570,1708911049102,-500.0,0.00019726,2]
[315184571,1708911049111,-759.23,0.00019726,2]
[315184572,1708911049121,-500.0,0.00019726,2]
[315184573,1708911049130,-500.0,0.00019726,2]
[315184574,1708911049139,-500.0,0.00019726,2]
[315184575,1708911049149,-500.0,0.00019726,2]
[315184576,1708911049158,-500.0,0.00019726,2]
[315184577,1708911049167,-500.39052972,0.00019726,2]
[315184578,1708911049177,-500.0,0.00019726,2]
[315184579,1708911049186,-741.61,0.00019726,2]
[315184580,1708911049195,-500.0,0.00019726,2]
[315184581,1708911049205,-500.0,0.00019726,2]
[315184582,1708911049214,-500.0,0.00019726,2]
[315184583,1708911049223,-500.0,0.00019726,2]
[315184584,1708911049232,-500.0,0.00019726,2]
[315184585,1708911049241,-500.0,0.00019726,2]
[315184586,1708911049250,-500.0,0.00019726,2]
[315184587,1708911049260,-1679.46,0.00019726,2]
[315184588,1708911049269,-11050.14,0.00019726,2]
[315184589,1708911049278,-500.0,0.00019726,2]
[315184590,1708911049287,-500.0,0.00019726,2]
[315184591,1708911049296,-500.0,0.00019726,2]
[315184592,1708911049305,-500.0,0.00019726,2]
[315184593,1708911049314,-2578.31,0.00019726,2]
[315184594,1708911049323,-500.0,0.00019726,2]
[315184595,1708911049332,-4104.25,0.00019726,2]
[315184596,1708911049342,-942.6,0.00019726,2]
[315184597,1708911049352,-2950.65,0.00019726,2]
[315184598,1708911049361,-500.0,0.00019726,2]
[315184599,1708911049371,-500.0,0.00019726,2]
[315184600,1708911049380,-500.0,0.00019726,2]
[315184601,1708911049388,-485.95883318,0.00019726,2]
[315184602,1708911049398,-1902.83,0.00019726,2]
[315184603,1708911049407,-500.0,0.00019726,2]
[315184604,1708911049416,-500.0,0.00019726,2]
[315184605,1708911049425,-1000.0,0.00019726,2]
[315184606,1708911049435,-248.03889364,0.00019726,2]
[315184607,1708911049444,-501.35978347,0.00019726,2]
[315184608,1708911049453,-500.0,0.00019726,2]
[315184609,1708911049462,-500.0,0.00019726,2]
[315184610,1708911049471,-500.0,0.00019726,2]
[315184611,1708911049481,-500.0,0.00019726,2]
[315184612,1708911049490,-2118.96,0.00019726,2]
[315184613,1708911049499,-500.0,0.00019726,2]
[315184614,1708911049510,-1946.48,0.00019726,2]
[315184615,1708911049519,-500.0,0.00019726,2]
[315184616,1708911049528,-500.0,0.00019726,2]
[315184617,1708911049537,-500.0,0.00019726,2]
[315184618,1708911049547,-500.0,0.00019726,2]
[315184619,1708911049556,-500.0,0.00019726,2]
[315184620,1708911049567,-500.0,0.00019726,2]
[315184621,1708911049577,-500.0,0.00019726,2]
[315184622,1708911049586,-500.0,0.00019726,2]
[315184623,1708911049596,-500.0,0.00019726,2]
[315184624,1708911049606,-435.27180056,0.00019726,2]
[315184625,1708911049616,-500.0,0.00019726,2]
[315184626,1708911049626,-500.0,0.00019726,2]
[315184627,1708911049636,-22115.03,0.00019726,2]
[315184628,1708911049646,-500.0,0.00019726,2]
[315184629,1708911049656,-500.0,0.00019726,2]
[315184630,1708911049665,-500.0,0.00019726,2]
[315184631,1708911049675,-2173.86,0.00019726,2]
[315184632,1708911049685,-500.0,0.00019726,2]
[315184633,1708911049694,-500.0,0.00019726,2]
[315184634,1708911049704,-500.0,0.00019726,2]
[315184635,1708911049713,-500.0,0.00019726,2]
[315184636,1708911049723,-500.0,0.00019726,2]
[315184637,1708911049733,-1731.72,0.00019726,2]
[315184638,1708911049743,-500.0,0.00019726,2]
[315184639,1708911049752,-500.49581509,0.00019726,2]
[315184640,1708911049761,-500.0,0.00019726,2]
[315184641,1708911049770,-1299.8,0.00019726,2]
[315184642,1708911049780,-586.26,0.00019726,2]
[315184643,1708911049789,-500.6752788,0.00019726,2]
[315184644,1708911049799,-500.0,0.00019726,2]
[315184645,1708911049809,-761.57,0.00019726,2]
[315184646,1708911049818,-8025.44,0.00019726,2]
[315184647,1708911049828,-4416.58,0.00019726,2]
[315184648,1708911049837,-2443.33,0.00019726,2]
[315184649,1708911049849,-500.0,0.00019726,2]
[315184650,1708911049858,-500.0,0.00019726,2]
[315184651,1708911049868,-11096.47,0.00019726,2]
[315184652,1708911049878,-500.0,0.00019726,2]
[315184654,1708911049887,-500.0,0.00019726,2]
[315184655,1708911049896,-500.0,0.00019726,2]
[315184657,1708911049906,-500.0,0.00019726,2]
[315184658,1708911049915,-502.19470919,0.00019726,2]
[315184659,1708911049925,-500.17034226,0.00019726,2]
[315184661,1708911049935,-3207.89,0.00019726,2]
[315184662,1708911049945,-3049.49,0.00019726,2]
[315184663,1708911049954,-500.0,0.00019726,2]
[315184664,1708911049963,-232.63178787,0.00019726,2]
[315184665,1708911049973,-500.0,0.00019726,2]
[315184666,1708911049982,-589.92596995,0.00019726,2]
[315184667,1708911049992,-500.0,0.00019726,2]
[315184668,1708911050001,-500.0,0.00019726,2]
[315184669,1708911050011,-1233.52,0.00019726,2]
[315184670,1708911050020,-502.79366647,0.00019726,2]
[315184671,1708911050029,-501.17195476,0.00019726,2]
[315184672,1708911050039,-1466.23,0.00019726,2]
[315184673,1708911050048,-22577.9,0.00019726,2]
[315184674,1708911050057,-3095.07,0.00019726,2]
[315184675,1708911050067,-500.0,0.00019726,2]
[315184676,1708911050076,-405.80118565,0.00019726,2]
[315184677,1708911050085,-331.05449464,0.00019726,2]
[315184678,1708911050095,-500.0,0.00019726,2]
[315184679,1708911050104,-500.77094281,0.00019726,2]
[315184680,1708911050114,-1437.55,0.00019726,2]
[315184681,1708911050124,-500.0,0.00019726,2]
[315184682,1708911050133,-1841.77,0.00019726,2]
[315184683,1708911050142,-500.0,0.00019726,2]
[315184684,1708911050152,-500.0,0.00019726,2]
[315184685,1708911050161,-500.0,0.00019726,2]
[315184686,1708911050171,-499.53437694,0.00019726,2]
[315184687,1708911050181,-500.0,0.00019726,2]
[315184688,1708911050190,-502.09355324,0.00019726,2]
[315184689,1708911050200,-401.1139106,0.00019808,2]
[315184690,1708911050210,-153.0,0.00019808,2]
[315184691,1708911050219,-153.0,0.00019808,2]
[315184692,1708911050229,-153.0,0.00019808,2]
[315184693,1708911050239,-153.0,0.00019808,2]
[315184694,1708911050249,-153.0,0.00019808,2]
[315184695,1708911050258,-153.0,0.00019808,2]
[315184696,1708911050267,-153.0,0.00019808,2]
[315184697,1708911050277,-153.0,0.00019808,2]
[315184698,1708911050286,-153.0,0.00019808,2]
[315184699,1708911050295,-153.0,0.00019808,2]
[315184700,1708911050305,-153.0,0.00019808,2]
[315184701,1708911050315,-153.9627877,0.00019808,2]
[315184702,1708911050323,-202.8168025,0.00019808,2]
[315184703,1708911050333,-154.0100625,0.00019808,2]
[315184704,1708911050342,-234.13825762,0.00019889,2]
[315184705,1708911050353,-500.0,0.00019899,2]
[315184706,1708911050362,-500.0,0.00019899,2]
[315184707,1708911050371,-500.0,0.00019899,2]
[315184708,1708911050380,-500.0,0.00019899,2]
[315184709,1708911050389,-500.0,0.00019899,2]
[315184710,1708911050399,-500.0,0.00019899,2]
[315184711,1708911050408,-500.0,0.00019899,2]
[315184712,1708911050417,-322.02967842,0.00019899,2]
[315184713,1708911050426,-500.0,0.00019899,2]
[315184714,1708911050436,-500.0,0.00019899,2]
[315184715,1708911050446,-500.0,0.00019899,2]
[315184716,1708911050455,-319.09963093,0.00019899,2]
[315184717,1708911050465,-243.58118859,0.00019899,2]
[315184718,1708911050474,-243.58118859,0.00019899,2]
[315184719,1708911050483,-276000.0,0.000199,2]
[315184720,1708911050492,-1448.31818436,0.00019998,2]
[315184721,1708911050502,-470.24825913,0.00019999,2]
[315184722,1708911050512,-216.50744666,0.00019999,2]
[315184723,1708911050521,-423397.68529918,0.0002,2]
[315184724,1708911050777,-846.98175724,0.00019178,2]
[315184725,1708911050790,-1601.49824276,0.00019178,2]
[315184726,1708911050801,-2448.48,0.00019452,2]
[315184727,1708911050812,-95961.5230899,0.0002,2]
[315184728,1708911050825,-899.82195666,0.0002,2]
[315184729,1708911050891,-2448.48,0.00019726,2]
[315184730,1708911050901,-153.0,0.00019808,2]
[315184731,1708911050910,-3957.82339618,0.0002,2]
[315184732,1708911050923,-339479.744689,0.0002,2]
[315184733,1708911051009,-1.36776,0.00019808,2]
[315184740,1708911272833,200.0,0.000182,2]
[315184741,1708911583912,213.7813875,0.00017972,2]
[315184742,1708911651608,236.621319,0.00017963,2]
[315184743,1708911708135,37401.3058004,0.00017963,2]
[315184744,1708911852184,2304.2231517,0.00018106,2]
[315184747,1708912124944,296.810289,0.00018075,2]
[315184817,1708912238884,-691.70350185,0.00018897,2]
[315184818,1708912238894,-5528.20288718,0.00018898,2]
[315184819,1708912238904,-476.93,0.00018899,2]
[315184820,1708912238915,-507.59160084,0.000189,2]
[315184821,1708912238925,-3762.0,0.00019,2]
[315184822,1708912238934,-161.03,0.00019,7]
[315184823,1708912238943,-5346.77885759,0.00019078,2]
[315184824,1708912238955,-642.00465785,0.00019176,2]
[315184825,1708912238964,-213.56544308,0.00019176,2]
[315184826,1708912238974,-679.48334121,0.00019176,2]
[315184827,1708912238984,-1417.17784005,0.00019176,2]
[315184828,1708912238993,-190.79249269,0.00019176,2]
[315184829,1708912239003,-920.99906137,0.00019177,2]
[315184830,1708912239012,-234.45277362,0.00019177,2]
[315184831,1708912239021,-335.36762039,0.00019178,2]
[315184832,1708912239030,-500.0,0.00019178,2]
[315184833,1708912239040,-399.09330614,0.00019178,2]
[315184834,1708912239049,-501.01565508,0.00019178,2]
[315184835,1708912239058,-507.63,0.00019178,2]
[315184836,1708912239068,-500.0,0.00019178,2]
[315184837,1708912239077,-151.0,0.00019178,2]
[315184838,1708912239086,-1370.04,0.00019178,2]
[315184839,1708912239096,-500.0,0.00019178,2]
[315184840,1708912239105,-733.83,0.00019178,2]
[315184841,1708912239114,-500.0,0.00019178,2]
[315184842,1708912239124,-500.0,0.00019178,2]
[315184843,1708912239136,-500.0,0.00019178,2]
[315184844,1708912239145,-510.75269847,0.00019178,2]
[315184846,1708912239156,-1005.8616059,0.00019178,2]
[315184848,1708912239165,-616.05400382,0.00019178,2]
[315184850,1708912239175,-500.0,0.00019178,2]
[315184852,1708912239184,-500.0,0.00019178,2]
[315184854,1708912239193,-500.0,0.00019178,2]
[315184856,1708912239203,-502.14294064,0.00019178,2]
[315184858,1708912239212,-500.0,0.00019178,2]
[315184860,1708912239221,-500.0,0.00019178,2]
[315184862,1708912239231,-500.0,0.00019178,2]
[315184864,1708912239239,-500.87195388,0.00019178,2]
[315184866,1708912239249,-500.0,0.00019178,2]
[315184868,1708912239259,-500.0,0.00019178,2]
[315184870,1708912239268,-500.0,0.00019178,2]
[315184872,1708912239277,-501.56333098,0.00019178,2]
[315184874,1708912239286,-500.0,0.00019178,2]
[315184876,1708912239295,-500.0,0.00019178,2]
[315184878,1708912239304,-717.15,0.00019178,2]
[315184880,1708912239313,-500.0,0.00019178,2]
[315184882,1708912239322,-284.91608667,0.00019178,2]
[315184884,1708912239331,-500.0,0.00019178,2]
[315184886,1708912239340,-500.0,0.00019178,2]
[315184888,1708912239348,-500.0,0.00019178,2]
[315184890,1708912239359,-500.48866021,0.00019178,2]
[315184892,1708912239368,-503.7577512,0.00019178,2]
[315184894,1708912239378,-549.12685038,0.00019178,2]
[315184896,1708912239389,-181.84943336,0.00019178,2]
[315184898,1708912239398,-503.71521842,0.00019178,2]
[315184900,1708912239407,-501.01691543,0.00019178,2]
[315184901,1708912239416,-501.71371694,0.00019178,2]
[315184904,1708912239426,-502.08038454,0.00019178,2]
[315184905,1708912239435,-567.44,0.00019178,2]
[315184907,1708912239444,-501.20981282,0.00019178,2]
[315184909,1708912239453,-500.0,0.00019178,2]
[315184911,1708912239462,-502.22433044,0.00019178,2]
[315184913,1708912239471,-500.0,0.00019178,2]
[315184916,1708912239481,-500.0,0.00019178,2]
[315184917,1708912239490,-500.0,0.00019178,2]
[315184919,1708912239500,-500.0,0.00019178,2]
[315184921,1708912239509,-500.0,0.00019178,2]
[315184923,1708912239519,-501.39502482,0.00019178,2]
[315184925,1708912239528,-503.01168124,0.00019178,2]
[315184927,1708912239537,-500.0,0.00019178,2]
[315184929,1708912239545,-500.0,0.00019178,2]
[315184931,1708912239554,-501.12560342,0.00019178,2]
[315184933,1708912239563,-500.0,0.00019178,2]
[315184935,1708912239572,-500.0,0.00019178,2]
[315184938,1708912239582,-500.0,0.00019178,2]
[315184940,1708912239592,-581.13636128,0.00019178,2]
[315184941,1708912239601,-179.15482802,0.00019178,2]
[315184943,1708912239611,-500.89874379,0.00019178,2]
[315184945,1708912239620,-500.79176669,0.00019178,2]
[315184947,1708912239631,-500.0,0.00019178,2]
[315184949,1708912239640,-500.0,0.00019178,2]
[315184951,1708912239649,-500.0,0.00019178,2]
[315184953,1708912239659,-500.94944783,0.00019178,2]
[315184955,1708912239668,-500.0,0.00019178,2]
[315184957,1708912239677,-500.0,0.00019178,2]
[315184959,1708912239686,-513.93926207,0.00019178,2]
[315184961,1708912239695,-559.15393256,0.00019178,2]
[315184963,1708912239704,-2110.95,0.00019178,2]
[315184965,1708912239713,-500.0,0.00019178,2]
[315184967,1708912239722,-500.0,0.00019178,2]
[315184969,1708912239731,-500.0,0.00019178,2]
[315184971,1708912239740,-1268.27,0.00019178,2]
[315184973,1708912239750,-500.0,0.00019178,2]
[315184975,1708912239759,-500.0,0.00019178,2]
[315184977,1708912239768,-500.0,0.00019178,2]
[315184979,1708912239777,-500.0,0.00019178,2]
[315184981,1708912239786,-500.0,0.00019178,2]
[315184983,1708912239795,-1648.38,0.00019178,2]
[315184985,1708912239804,-500.0,0.00019178,2]
[315184987,1708912239813,-500.0,0.00019178,2]
[315184989,1708912239821,-500.0,0.00019178,2]
[315184991,1708912239831,-500.0,0.00019178,2]
[315184993,1708912239839,-501.16512852,0.00019178,2]
[315184995,1708912239848,-500.0,0.00019178,2]
[315184997,1708912239857,-500.0,0.00019178,2]
[315184999,1708912239866,-500.0,0.00019178,2]
[315185001,1708912239877,-500.0,0.00019178,2]
[315185003,1708912239887,-500.0,0.00019178,2]
[315185005,1708912239897,-500.0,0.00019178,2]
[315185007,1708912239906,-500.0,0.00019178,2]
[315185009,1708912239918,-501.03015626,0.00019178,2]
[315185011,1708912239927,-563.7712691,0.00019178,2]
[315185013,1708912239936,-500.0,0.00019178,2]
[315185015,1708912239946,-500.0,0.00019178,2]
[315185017,1708912239955,-312.51592479,0.00019178,2]
[315185019,1708912239963,-220.42165296,0.00019178,2]
[315185021,1708912239973,-500.0,0.00019178,2]
[315185023,1708912239982,-500.0,0.00019178,2]
[315185025,1708912239993,-500.0,0.00019178,2]
[315185027,1708912240002,-500.0,0.00019178,2]
[315185029,1708912240011,-500.0,0.00019178,2]
[315185031,1708912240021,-500.0,0.00019178,2]
[315185033,1708912240030,-500.0,0.00019178,2]
[315185035,1708912240039,-500.0,0.00019178,2]
[315185037,1708912240048,-500.0,0.00019178,2]
[315185039,1708912240056,-500.0,0.00019178,2]
[315185041,1708912240066,-500.0,0.00019178,2]
[315185043,1708912240074,-500.0,0.00019178,2]
[315185045,1708912240084,-1786.32,0.00019178,2]
[315185047,1708912240093,-662.08,0.00019178,2]
[315185049,1708912240102,-977.83,0.00019178,2]
[315185051,1708912240111,-500.85655248,0.00019178,2]
[315185053,1708912240120,-544.80572393,0.00019178,2]
[315185055,1708912240131,-500.0,0.00019178,2]
[315185057,1708912240140,-501.86676046,0.00019178,2]
[315185059,1708912240149,-500.0,0.00019178,2]
[315185061,1708912240158,-711.07,0.00019178,2]
[315185063,1708912240168,-501.47122069,0.00019178,2]
[315185065,1708912240177,-500.0,0.00019178,2]
[315185067,1708912240186,-500.0,0.00019178,2]
[315185069,1708912240195,-500.0,0.00019178,2]
[315185071,1708912240205,-501.36543162,0.00019178,2]
[315185073,1708912240214,-500.0,0.00019178,2]
[315185075,1708912240223,-397.25117169,0.00019178,2]
[315185077,1708912240232,-224.26002173,0.00019178,2]
[315185079,1708912240241,-249.09722205,0.00019178,2]
[315185081,1708912240251,-500.0,0.00019178,2]
[315185083,1708912240259,-500.0,0.00019178,2]
[315185085,1708912240268,-500.0,0.00019178,2]
[315185087,1708912240277,-503.92602803,0.00019178,2]
[315185089,1708912240287,-500.0,0.00019178,2]
[315185091,1708912240296,-500.0,0.00019178,2]